[Event "December 12 Late 2023"]
[Site "https://www.chess.com"]
[Date "2023.12.12"]
[Round "7"]
[White "Desideri, Ricardo Maruchi"]
[Black "Dubreuil, Julien"]
[Result "0-1"]
[Board "127"]
[TimeControl "180+1"]
[WhiteFideId "2110440"]
[BlackFideId "621285"]
[WhiteElo "2011"]
[BlackElo "2292"]
[WhiteTeam "BRA"]
[BlackTeam "FRA"]
[WhiteClock "0:00:00"]
[BlackClock "0:01:42"]

1. e4 {[%clk 0:03:00]}  c5 {[%clk 0:02:59]} 2. Nf3 {[%clk 0:02:59]}  Nc6 {[%clk 0:03:00]} 3. d4 {[%clk 0:02:58]}  cxd4 {[%clk 0:02:59]} 4. Nxd4 {[%clk 0:02:59]}  Nf6 {[%clk 0:02:58]} 5. Nc3 {[%clk 0:02:59]}  e5 {[%clk 0:02:59]} 6. Ndb5 {[%clk 0:02:59]}  d6 {[%clk 0:02:59]} 7. Nd5 {[%clk 0:02:59]}  Nxd5 {[%clk 0:02:59]} 8. exd5 {[%clk 0:03:00]}  Nb8 {[%clk 0:02:59]} 9. a4 {[%clk 0:02:47]}  Be7 {[%clk 0:02:58]} 10. Be2 {[%clk 0:02:41]}  O-O {[%clk 0:02:58]} 11. O-O {[%clk 0:02:41]}  f5 {[%clk 0:02:40]} 12. f4 {[%clk 0:02:13]}  a6 {[%clk 0:02:39]} 13. Nc3 {[%clk 0:02:09]}  exf4 {[%clk 0:02:38]} 14. Bxf4 {[%clk 0:02:08]}  Nd7 {[%clk 0:02:38]} 15. b4 {[%clk 0:01:49]}  Qb6+ {[%clk 0:02:35]} 16. Kh1 {[%clk 0:01:46]}  Qxb4 {[%clk 0:02:35]} 17. Rf3 {[%clk 0:01:20]}  Bf6 {[%clk 0:02:35]} 18. Rb1 {[%clk 0:01:19]}  Qa5 {[%clk 0:02:27]} 19. Bxd6 {[%clk 0:01:05]}  Bxc3 {[%clk 0:02:23]} 20. Bxf8 {[%clk 0:01:03]}  Nxf8 {[%clk 0:02:23]} 21. Bc4 {[%clk 0:00:38]}  Bf6 {[%clk 0:02:16]} 22. d6+ {[%clk 0:00:37]}  Kh8 {[%clk 0:02:16]} 23. Rh3 {[%clk 0:00:33]}  Qc5 {[%clk 0:02:05]} 24. Bb3 {[%clk 0:00:19]}  f4 {[%clk 0:01:59]} 25. Rh5 {[%clk 0:00:13]}  Qe3 {[%clk 0:01:51]} 26. Qd5 {[%clk 0:00:03]}  Be6 {[%clk 0:01:42]} 27. Qxb7 {[%clk 0:00:00]}  Rd8 {[%clk 0:01:42]} 0-1

[Event "December 12 Late 2023"]
[Site "https://www.chess.com"]
[Date "2023.12.12"]
[Round "8"]
[White "Lazavik, Denis"]
[Black "Bluebaum, Matthias"]
[Result "0-1"]
[Board "1"]
[TimeControl "180+1"]
[WhiteFideId "13515110"]
[BlackFideId "24651516"]
[WhiteElo "3080"]
[BlackElo "3053"]
[WhiteTeam "BLR"]
[BlackTeam "GER"]
[WhiteClock "0:00:15"]
[BlackClock "0:00:56"]

1. d4 {[%clk 0:03:00]}  d5 {[%clk 0:02:59]} 2. c4 {[%clk 0:03:01]}  e6 {[%clk 0:03:00]} 3. Nf3 {[%clk 0:03:00]}  Nf6 {[%clk 0:03:00]} 4. g3 {[%clk 0:03:01]}  Nc6 {[%clk 0:03:01]} 5. Bg2 {[%clk 0:03:01]}  Bd6 {[%clk 0:03:02]} 6. O-O {[%clk 0:03:01]}  O-O {[%clk 0:03:02]} 7. a3 {[%clk 0:02:59]}  dxc4 {[%clk 0:02:57]} 8. Qa4 {[%clk 0:02:59]}  e5 {[%clk 0:02:54]} 9. dxe5 {[%clk 0:02:57]}  Nxe5 {[%clk 0:02:55]} 10. Nxe5 {[%clk 0:02:56]}  Bxe5 {[%clk 0:02:56]} 11. Qxc4 {[%clk 0:02:57]}  c6 {[%clk 0:02:53]} 12. Nd2 {[%clk 0:02:54]}  Be6 {[%clk 0:02:52]} 13. Qc2 {[%clk 0:02:53]}  Qe7 {[%clk 0:02:48]} 14. Nf3 {[%clk 0:02:52]}  Bc7 {[%clk 0:02:47]} 15. Nd4 {[%clk 0:02:52]}  Bd5 {[%clk 0:02:45]} 16. Bxd5 {[%clk 0:02:42]}  Nxd5 {[%clk 0:02:46]} 17. Nf5 {[%clk 0:02:41]}  Qe6 {[%clk 0:02:45]} 18. e4 {[%clk 0:02:40]}  Nf6 {[%clk 0:02:42]} 19. f3 {[%clk 0:02:41]}  Rfd8 {[%clk 0:02:38]} 20. Bg5 {[%clk 0:02:33]}  h6 {[%clk 0:02:33]} 21. Bd2 {[%clk 0:02:31]}  Rd7 {[%clk 0:02:29]} 22. Bc3 {[%clk 0:02:24]}  Be5 {[%clk 0:02:25]} 23. Rad1 {[%clk 0:02:21]}  Rad8 {[%clk 0:02:23]} 24. Rxd7 {[%clk 0:02:07]}  Rxd7 {[%clk 0:02:24]} 25. Bd2 {[%clk 0:02:05]}  Bc7 {[%clk 0:02:18]} 26. Be3 {[%clk 0:02:02]}  Bb6 {[%clk 0:02:17]} 27. Bxb6 {[%clk 0:02:00]}  axb6 {[%clk 0:02:18]} 28. Rd1 {[%clk 0:02:01]}  h5 {[%clk 0:02:12]} 29. Rxd7 {[%clk 0:01:55]}  Qxd7 {[%clk 0:02:13]} 30. Qc3 {[%clk 0:01:51]}  Qd1+ {[%clk 0:02:04]} 31. Kf2 {[%clk 0:01:50]}  Qh1 {[%clk 0:02:04]} 32. h4 {[%clk 0:01:42]}  Qh2+ {[%clk 0:02:04]} 33. Ke3 {[%clk 0:01:42]}  Qg1+ {[%clk 0:02:04]} 34. Kf4 {[%clk 0:01:38]}  Qd1 {[%clk 0:01:50]} 35. Qd4 {[%clk 0:01:34]}  Qc1+ {[%clk 0:01:48]} 36. Ke5 {[%clk 0:01:33]}  Ne8 {[%clk 0:01:31]} 37. Qc3 {[%clk 0:01:03]}  Qd1 {[%clk 0:01:19]} 38. Qd4 {[%clk 0:00:56]}  Qxf3 {[%clk 0:01:10]} 39. Ne7+ {[%clk 0:00:18]}  Kf8 {[%clk 0:01:02]} 40. Nf5 {[%clk 0:00:19]}  f6+ {[%clk 0:00:55]} 41. Ke6 {[%clk 0:00:16]}  Qb3+ {[%clk 0:00:56]} 42. Kd7 {[%clk 0:00:15]}  Qf7+ {[%clk 0:00:56]} 0-1

[Event "December 12 Late 2023"]
[Site "https://www.chess.com"]
[Date "2023.12.12"]
[Round "8"]
[White "Andreikin, Dmitry"]
[Black "Smirnov, Anton"]
[Result "1-0"]
[Board "3"]
[TimeControl "180+1"]
[WhiteFideId "4158814"]
[BlackFideId "3208923"]
[WhiteElo "3112"]
[BlackElo "2987"]
[WhiteTeam "FID"]
[BlackTeam "AUS"]
[WhiteClock "0:00:06"]
[BlackClock "0:00:07"]

1. d4 {[%clk 0:03:00]}  d5 {[%clk 0:02:59]} 2. c4 {[%clk 0:03:00]}  c6 {[%clk 0:02:59]} 3. Nf3 {[%clk 0:03:00]}  Nf6 {[%clk 0:02:58]} 4. Qc2 {[%clk 0:03:00]}  g6 {[%clk 0:02:55]} 5. cxd5 {[%clk 0:03:00]}  cxd5 {[%clk 0:02:55]} 6. Nc3 {[%clk 0:03:00]}  Nc6 {[%clk 0:02:54]} 7. Bf4 {[%clk 0:03:00]}  Bg7 {[%clk 0:02:50]} 8. e3 {[%clk 0:03:00]}  O-O {[%clk 0:02:50]} 9. h3 {[%clk 0:02:57]}  Qb6 {[%clk 0:02:46]} 10. Be2 {[%clk 0:02:41]}  Bf5 {[%clk 0:02:45]} 11. Qb3 {[%clk 0:02:36]}  Nb4 {[%clk 0:02:36]} 12. O-O {[%clk 0:02:32]}  Nd3 {[%clk 0:02:16]} 13. Bxd3 {[%clk 0:02:15]}  Qxb3 {[%clk 0:02:14]} 14. axb3 {[%clk 0:02:15]}  Bxd3 {[%clk 0:02:14]} 15. Rfc1 {[%clk 0:02:15]}  Rfc8 {[%clk 0:02:10]} 16. Ne5 {[%clk 0:02:09]}  Bf5 {[%clk 0:02:03]} 17. g4 {[%clk 0:02:03]}  Be6 {[%clk 0:02:02]} 18. Nb5 {[%clk 0:02:03]}  Rxc1+ {[%clk 0:01:56]} 19. Rxc1 {[%clk 0:02:04]}  a6 {[%clk 0:01:55]} 20. Nc7 {[%clk 0:02:04]}  Rc8 {[%clk 0:01:54]} 21. Rc5 {[%clk 0:01:49]}  b6 {[%clk 0:01:00]} 22. Rc6 {[%clk 0:01:46]}  Ne8 {[%clk 0:00:22]} 23. Nxd5 {[%clk 0:01:11]}  Rxc6 {[%clk 0:00:21]} 24. Nxe7+ {[%clk 0:01:10]}  Kf8 {[%clk 0:00:21]} 25. N5xc6 {[%clk 0:01:02]}  Bxb3 {[%clk 0:00:20]} 26. Nc8 {[%clk 0:01:00]}  b5 {[%clk 0:00:20]} 27. Nb8 {[%clk 0:01:00]}  a5 {[%clk 0:00:18]} 28. Nd7+ {[%clk 0:01:00]}  Kg8 {[%clk 0:00:18]} 29. Ne7+ {[%clk 0:00:57]}  Kh8 {[%clk 0:00:19]} 30. Nc5 {[%clk 0:00:54]}  Bc4 {[%clk 0:00:17]} 31. b3 {[%clk 0:00:49]}  Be6 {[%clk 0:00:15]} 32. d5 {[%clk 0:00:41]}  Bf8 {[%clk 0:00:13]} 33. dxe6 {[%clk 0:00:36]}  f6 {[%clk 0:00:09]} 34. Nb7 {[%clk 0:00:23]}  Bxe7 {[%clk 0:00:10]} 35. Nxa5 {[%clk 0:00:23]}  Kg7 {[%clk 0:00:10]} 36. Nc6 {[%clk 0:00:23]}  Bc5 {[%clk 0:00:10]} 37. Kf1 {[%clk 0:00:15]}  Kf8 {[%clk 0:00:08]} 38. Ke2 {[%clk 0:00:14]}  g5 {[%clk 0:00:08]} 39. Bb8 {[%clk 0:00:13]}  Ng7 {[%clk 0:00:08]} 40. b4 {[%clk 0:00:12]}  Bb6 {[%clk 0:00:08]} 41. e7+ {[%clk 0:00:07]}  Ke8 {[%clk 0:00:08]} 42. Kd3 {[%clk 0:00:07]}  Kd7 {[%clk 0:00:09]} 43. Nd4 {[%clk 0:00:07]}  Kxe7 {[%clk 0:00:04]} 44. Nxb5 {[%clk 0:00:06]}  h5 {[%clk 0:00:04]} 45. Nc3 {[%clk 0:00:06]}  Ke6 {[%clk 0:00:04]} 46. Kc4 {[%clk 0:00:04]}  hxg4 {[%clk 0:00:04]} 47. hxg4 {[%clk 0:00:05]}  f5 {[%clk 0:00:05]} 48. Nd5 {[%clk 0:00:05]}  Bd8 {[%clk 0:00:05]} 49. b5 {[%clk 0:00:04]}  fxg4 {[%clk 0:00:05]} 50. b6 {[%clk 0:00:04]}  Kd7 {[%clk 0:00:05]} 51. Kb5 {[%clk 0:00:03]}  Kc8 {[%clk 0:00:05]} 52. Be5 {[%clk 0:00:02]}  Nf5 {[%clk 0:00:03]} 53. Kc6 {[%clk 0:00:03]}  Bxb6 {[%clk 0:00:03]} 54. Nxb6+ {[%clk 0:00:03]}  Kd8 {[%clk 0:00:04]} 55. Nd5 {[%clk 0:00:03]}  Ke8 {[%clk 0:00:04]} 56. Nf6+ {[%clk 0:00:03]}  Kf7 {[%clk 0:00:05]} 57. Nxg4 {[%clk 0:00:04]}  Ke6 {[%clk 0:00:05]} 58. Bg3 {[%clk 0:00:04]}  Ne7+ {[%clk 0:00:05]} 59. Kc5 {[%clk 0:00:04]}  Kf5 {[%clk 0:00:06]} 60. f3 {[%clk 0:00:04]}  Ke6 {[%clk 0:00:06]} 61. e4 {[%clk 0:00:04]}  Ng6 {[%clk 0:00:06]} 62. Kd4 {[%clk 0:00:04]}  Ne7 {[%clk 0:00:06]} 63. Ke3 {[%clk 0:00:05]}  Nc6 {[%clk 0:00:07]} 64. Be1 {[%clk 0:00:05]}  Ne7 {[%clk 0:00:07]} 65. Bc3 {[%clk 0:00:05]}  Ng8 {[%clk 0:00:06]} 66. Bd4 {[%clk 0:00:05]}  Kf7 {[%clk 0:00:07]} 67. Bb6 {[%clk 0:00:06]}  Kg6 {[%clk 0:00:07]} 68. Bd8 {[%clk 0:00:06]}  Kh5 {[%clk 0:00:07]} 69. Kf2 {[%clk 0:00:05]}  Kg6 {[%clk 0:00:08]} 70. Ke3 {[%clk 0:00:05]}  Kh5 {[%clk 0:00:09]} 71. Nf6+ {[%clk 0:00:06]}  Nxf6 {[%clk 0:00:07]} 72. Bxf6 {[%clk 0:00:06]} 1-0

[Event "December 12 Late 2023"]
[Site "https://www.chess.com"]
[Date "2023.12.12"]
[Round "8"]
[White "Sarana, Alexey"]
[Black "Cordova, Emilio"]
[Result "1-0"]
[Board "4"]
[TimeControl "180+1"]
[WhiteFideId "24133795"]
[BlackFideId "3801497"]
[WhiteElo "3051"]
[BlackElo "2939"]
[WhiteTeam "SRB"]
[BlackTeam "PER"]
[WhiteClock "0:00:13"]
[BlackClock "0:00:00"]

1. d4 {[%clk 0:03:00]}  e6 {[%clk 0:02:59]} 2. c4 {[%clk 0:03:01]}  b6 {[%clk 0:02:59]} 3. e4 {[%clk 0:02:59]}  Bb4+ {[%clk 0:02:54]} 4. Nc3 {[%clk 0:02:59]}  Bb7 {[%clk 0:02:53]} 5. f3 {[%clk 0:02:59]}  f5 {[%clk 0:02:52]} 6. exf5 {[%clk 0:02:59]}  Nh6 {[%clk 0:02:52]} 7. Bd3 {[%clk 0:02:56]}  O-O {[%clk 0:02:39]} 8. fxe6 {[%clk 0:02:53]}  Qh4+ {[%clk 0:02:26]} 9. Kf1 {[%clk 0:02:50]}  dxe6 {[%clk 0:02:03]} 10. g3 {[%clk 0:02:26]}  Qh5 {[%clk 0:01:57]} 11. Be4 {[%clk 0:02:22]}  Nc6 {[%clk 0:01:50]} 12. Nce2 {[%clk 0:02:00]}  Rad8 {[%clk 0:01:35]} 13. Nf4 {[%clk 0:01:57]}  Qe8 {[%clk 0:01:33]} 14. d5 {[%clk 0:01:44]}  Ne5 {[%clk 0:01:29]} 15. Qb3 {[%clk 0:01:40]}  exd5 {[%clk 0:01:12]} 16. cxd5 {[%clk 0:01:40]}  Bd6 {[%clk 0:00:57]} 17. Ne6 {[%clk 0:01:39]}  Nd7 {[%clk 0:00:54]} 18. Bxh6 {[%clk 0:01:32]}  Nc5 {[%clk 0:00:34]} 19. Nxc5 {[%clk 0:01:24]}  bxc5 {[%clk 0:00:34]} 20. Bf4 {[%clk 0:01:12]}  Ba6+ {[%clk 0:00:30]} 21. Kg2 {[%clk 0:01:02]}  Bxf4 {[%clk 0:00:30]} 22. gxf4 {[%clk 0:01:03]}  Rxf4 {[%clk 0:00:30]} 23. Qe3 {[%clk 0:00:55]}  Rf6 {[%clk 0:00:18]} 24. Nh3 {[%clk 0:00:52]}  Qh5 {[%clk 0:00:17]} 25. Rhg1 {[%clk 0:00:43]}  Rdf8 {[%clk 0:00:17]} 26. Nf2 {[%clk 0:00:39]}  Bb7 {[%clk 0:00:10]} 27. Rad1 {[%clk 0:00:36]}  Rf4 {[%clk 0:00:09]} 28. Kh1 {[%clk 0:00:35]}  Bc8 {[%clk 0:00:05]} 29. Rg3 {[%clk 0:00:34]}  Rh4 {[%clk 0:00:04]} 30. Rg2 {[%clk 0:00:27]}  Bf5 {[%clk 0:00:04]} 31. Rdg1 {[%clk 0:00:26]}  g6 {[%clk 0:00:04]} 32. Bxf5 {[%clk 0:00:24]}  Rxf5 {[%clk 0:00:05]} 33. Qe6+ {[%clk 0:00:24]}  Kg7 {[%clk 0:00:05]} 34. Ng4 {[%clk 0:00:17]}  Rxf3 {[%clk 0:00:03]} 35. Qe7+ {[%clk 0:00:16]}  Kh8 {[%clk 0:00:02]} 36. Qd8+ {[%clk 0:00:12]}  Kg7 {[%clk 0:00:00]} 37. Qxc7+ {[%clk 0:00:13]} 1-0

[Event "December 12 Late 2023"]
[Site "https://www.chess.com"]
[Date "2023.12.12"]
[Round "8"]
[White "Bortnyk, Olexandr"]
[Black "Kazakouski, Valery"]
[Result "0-1"]
[Board "11"]
[TimeControl "180+1"]
[WhiteFideId "14120828"]
[BlackFideId "13507443"]
[WhiteElo "2989"]
[BlackElo "2828"]
[WhiteTeam "UKR"]
[BlackTeam "LTU"]
[WhiteClock "0:00:02"]
[BlackClock "0:00:07"]

1. e4 {[%clk 0:03:00]}  c5 {[%clk 0:02:59]} 2. c3 {[%clk 0:03:00]}  a6 {[%clk 0:02:52]} 3. d4 {[%clk 0:03:00]}  cxd4 {[%clk 0:02:53]} 4. cxd4 {[%clk 0:03:00]}  d5 {[%clk 0:02:54]} 5. exd5 {[%clk 0:03:01]}  Nf6 {[%clk 0:02:54]} 6. Nc3 {[%clk 0:03:01]}  Nxd5 {[%clk 0:02:55]} 7. Bc4 {[%clk 0:03:01]}  Nxc3 {[%clk 0:02:55]} 8. bxc3 {[%clk 0:03:00]}  Nc6 {[%clk 0:02:53]} 9. Nf3 {[%clk 0:02:59]}  e6 {[%clk 0:02:49]} 10. O-O {[%clk 0:02:58]}  Be7 {[%clk 0:02:48]} 11. Qe2 {[%clk 0:02:54]}  b5 {[%clk 0:02:45]} 12. Bd3 {[%clk 0:02:52]}  Bb7 {[%clk 0:02:45]} 13. Re1 {[%clk 0:02:50]}  Rc8 {[%clk 0:02:37]} 14. a4 {[%clk 0:02:45]}  b4 {[%clk 0:02:37]} 15. Rb1 {[%clk 0:02:31]}  a5 {[%clk 0:02:34]} 16. Bf4 {[%clk 0:02:29]}  O-O {[%clk 0:02:24]} 17. Qe4 {[%clk 0:02:25]}  g6 {[%clk 0:02:24]} 18. cxb4 {[%clk 0:02:25]}  Nxb4 {[%clk 0:02:11]} 19. Qe2 {[%clk 0:01:56]}  Nxd3 {[%clk 0:01:55]} 20. Qxd3 {[%clk 0:01:57]}  Bxf3 {[%clk 0:01:55]} 21. Qxf3 {[%clk 0:01:58]}  Qxd4 {[%clk 0:01:49]} 22. Bh6 {[%clk 0:01:58]}  Rfd8 {[%clk 0:01:44]} 23. g3 {[%clk 0:01:55]}  Qxa4 {[%clk 0:01:37]} 24. Rb7 {[%clk 0:01:55]}  Rd7 {[%clk 0:01:29]} 25. Reb1 {[%clk 0:01:48]}  Bf8 {[%clk 0:01:01]} 26. Rb8 {[%clk 0:01:11]}  Rdd8 {[%clk 0:01:00]} 27. R8b7 {[%clk 0:00:59]}  Qe8 {[%clk 0:00:58]} 28. Bg5 {[%clk 0:00:47]}  Rd5 {[%clk 0:00:54]} 29. h4 {[%clk 0:00:46]}  h6 {[%clk 0:00:53]} 30. Bf4 {[%clk 0:00:44]}  a4 {[%clk 0:00:48]} 31. Qe3 {[%clk 0:00:41]}  h5 {[%clk 0:00:24]} 32. Rb8 {[%clk 0:00:28]}  Rxb8 {[%clk 0:00:22]} 33. Rxb8 {[%clk 0:00:29]}  Rd8 {[%clk 0:00:22]} 34. Rb1 {[%clk 0:00:23]}  Bg7 {[%clk 0:00:21]} 35. Qa3 {[%clk 0:00:12]}  Ra8 {[%clk 0:00:20]} 36. Rb7 {[%clk 0:00:11]}  Bf8 {[%clk 0:00:17]} 37. Bd6 {[%clk 0:00:03]}  Bxd6 {[%clk 0:00:16]} 38. Qxd6 {[%clk 0:00:04]}  a3 {[%clk 0:00:16]} 39. Rb1 {[%clk 0:00:01]}  a2 {[%clk 0:00:16]} 40. Ra1 {[%clk 0:00:02]}  Qb5 {[%clk 0:00:14]} 41. Qd4 {[%clk 0:00:01]}  Qd5 {[%clk 0:00:13]} 42. Qf6 {[%clk 0:00:01]}  Rb8 {[%clk 0:00:09]} 43. Kh2 {[%clk 0:00:01]}  Rb1 {[%clk 0:00:07]} 44. Qc3 {[%clk 0:00:02]}  Qh1# {[%clk 0:00:07]} 0-1

[Event "December 12 Late 2023"]
[Site "https://www.chess.com"]
[Date "2023.12.12"]
[Round "8"]
[White "Timmermans, Mark"]
[Black "Makarian, Rudik"]
[Result "1/2-1/2"]
[Board "12"]
[TimeControl "180+1"]
[WhiteFideId "1026399"]
[BlackFideId "44105681"]
[WhiteElo "2740"]
[BlackElo "2937"]
[WhiteTeam "NED"]
[BlackTeam "FID"]
[WhiteClock "0:01:09"]
[BlackClock "0:01:05"]

1. b4 {[%clk 0:03:00]}  e5 {[%clk 0:02:57]} 2. Bb2 {[%clk 0:03:00]}  Bxb4 {[%clk 0:02:57]} 3. Bxe5 {[%clk 0:03:00]}  Nf6 {[%clk 0:02:58]} 4. Nc3 {[%clk 0:03:00]}  Be7 {[%clk 0:02:52]} 5. e3 {[%clk 0:03:00]}  O-O {[%clk 0:02:53]} 6. Nf3 {[%clk 0:03:00]}  Nc6 {[%clk 0:02:53]} 7. Bg3 {[%clk 0:03:00]}  d5 {[%clk 0:02:50]} 8. Nb5 {[%clk 0:02:56]}  Ne8 {[%clk 0:02:48]} 9. c4 {[%clk 0:02:54]}  dxc4 {[%clk 0:02:43]} 10. Bxc4 {[%clk 0:02:55]}  a6 {[%clk 0:02:39]} 11. Nc3 {[%clk 0:02:55]}  Na5 {[%clk 0:02:38]} 12. Be2 {[%clk 0:02:53]}  b5 {[%clk 0:02:38]} 13. O-O {[%clk 0:02:50]}  Bb7 {[%clk 0:02:38]} 14. d4 {[%clk 0:02:38]}  Nf6 {[%clk 0:02:26]} 15. Qc2 {[%clk 0:02:29]}  c5 {[%clk 0:02:21]} 16. dxc5 {[%clk 0:02:27]}  Qc8 {[%clk 0:02:13]} 17. Rfc1 {[%clk 0:01:58]}  Qxc5 {[%clk 0:02:09]} 18. Qd1 {[%clk 0:01:53]}  Rfd8 {[%clk 0:02:04]} 19. Qf1 {[%clk 0:01:54]}  Qb6 {[%clk 0:02:01]} 20. Rab1 {[%clk 0:01:51]}  Rac8 {[%clk 0:01:58]} 21. Nd4 {[%clk 0:01:47]}  Ba3 {[%clk 0:01:41]} 22. Rc2 {[%clk 0:01:42]}  Qa7 {[%clk 0:01:37]} 23. Ncxb5 {[%clk 0:01:38]}  axb5 {[%clk 0:01:35]} 24. Nxb5 {[%clk 0:01:39]}  Rxc2 {[%clk 0:01:26]} 25. Nxa7 {[%clk 0:01:38]}  Rxa2 {[%clk 0:01:25]} 26. Bc7 {[%clk 0:01:37]}  Ra8 {[%clk 0:01:16]} 27. Bxa5 {[%clk 0:01:12]}  Rxa7 {[%clk 0:01:16]} 28. Bb6 {[%clk 0:01:12]}  Ra8 {[%clk 0:01:16]} 29. Ra1 {[%clk 0:01:13]}  Rxa1 {[%clk 0:01:12]} 30. Qxa1 {[%clk 0:01:14]}  Bf8 {[%clk 0:01:09]} 31. Qf1 {[%clk 0:01:08]}  Be4 {[%clk 0:01:00]} 32. f3 {[%clk 0:01:06]}  Rb8 {[%clk 0:01:00]} 33. Bd4 {[%clk 0:01:05]}  Rb1 {[%clk 0:00:58]} 34. Bxf6 {[%clk 0:01:01]}  Rxf1+ {[%clk 0:00:56]} 35. Kxf1 {[%clk 0:01:02]}  gxf6 {[%clk 0:00:55]} 36. fxe4 {[%clk 0:01:02]}  Bd6 {[%clk 0:00:55]} 37. g3 {[%clk 0:01:01]}  Be5 {[%clk 0:00:56]} 38. Kg2 {[%clk 0:01:02]}  Kg7 {[%clk 0:00:57]} 39. Kf3 {[%clk 0:01:02]}  h6 {[%clk 0:00:58]} 40. h4 {[%clk 0:01:02]}  Bd6 {[%clk 0:00:59]} 41. Bf1 {[%clk 0:01:03]}  Be5 {[%clk 0:00:59]} 42. Bh3 {[%clk 0:01:03]}  Bd6 {[%clk 0:01:00]} 43. Bf5 {[%clk 0:01:04]}  Be5 {[%clk 0:01:01]} 44. h5 {[%clk 0:01:05]}  Bd6 {[%clk 0:01:02]} 45. g4 {[%clk 0:01:06]}  Be5 {[%clk 0:01:03]} 46. Ke2 {[%clk 0:01:06]}  Bd6 {[%clk 0:01:04]} 47. Kf3 {[%clk 0:01:07]}  Be5 {[%clk 0:01:05]} 48. Ke2 {[%clk 0:01:08]}  Bd6 {[%clk 0:01:05]} 49. Kf3 {[%clk 0:01:09]} 1/2-1/2

[Event "December 12 Late 2023"]
[Site "https://www.chess.com"]
[Date "2023.12.12"]
[Round "8"]
[White "Yuan, Qingyu"]
[Black "Drygalov, Sergey"]
[Result "1-0"]
[Board "15"]
[TimeControl "180+1"]
[WhiteFideId "8609772"]
[BlackFideId "24171743"]
[WhiteElo "2787"]
[BlackElo "2994"]
[WhiteTeam "CHN"]
[BlackTeam "RUS"]
[WhiteClock "0:00:03"]
[BlackClock "0:00:00"]

1. e4 {[%clk 0:03:00]}  c5 {[%clk 0:02:56]} 2. Nf3 {[%clk 0:03:00]}  d6 {[%clk 0:02:57]} 3. Bb5+ {[%clk 0:03:00]}  Nd7 {[%clk 0:02:57]} 4. c3 {[%clk 0:03:01]}  Nf6 {[%clk 0:02:56]} 5. Qe2 {[%clk 0:03:02]}  a6 {[%clk 0:02:54]} 6. Ba4 {[%clk 0:03:02]}  b5 {[%clk 0:02:50]} 7. Bc2 {[%clk 0:03:02]}  c4 {[%clk 0:02:46]} 8. b3 {[%clk 0:03:02]}  Qc7 {[%clk 0:02:44]} 9. bxc4 {[%clk 0:03:00]}  bxc4 {[%clk 0:02:44]} 10. Na3 {[%clk 0:03:01]}  Nb6 {[%clk 0:02:44]} 11. e5 {[%clk 0:02:55]}  dxe5 {[%clk 0:02:38]} 12. Nxe5 {[%clk 0:02:56]}  Be6 {[%clk 0:02:36]} 13. Rb1 {[%clk 0:02:56]}  Rc8 {[%clk 0:02:26]} 14. Rxb6 {[%clk 0:02:31]}  Qxb6 {[%clk 0:02:26]} 15. Ba4+ {[%clk 0:02:31]}  Nd7 {[%clk 0:02:26]} 16. Naxc4 {[%clk 0:02:15]}  Qc7 {[%clk 0:02:25]} 17. d3 {[%clk 0:01:46]}  g6 {[%clk 0:02:25]} 18. Bf4 {[%clk 0:01:38]}  Bg7 {[%clk 0:02:00]} 19. O-O {[%clk 0:00:56]}  O-O {[%clk 0:01:42]} 20. Nxg6 {[%clk 0:00:50]}  Qd8 {[%clk 0:01:41]} 21. Nxf8 {[%clk 0:00:48]}  Nxf8 {[%clk 0:01:42]} 22. Rc1 {[%clk 0:00:29]}  Ng6 {[%clk 0:01:42]} 23. Bg3 {[%clk 0:00:27]}  Rc5 {[%clk 0:01:39]} 24. h3 {[%clk 0:00:26]}  h5 {[%clk 0:01:38]} 25. Qe3 {[%clk 0:00:23]}  Rf5 {[%clk 0:01:23]} 26. Bc6 {[%clk 0:00:19]}  Kh7 {[%clk 0:01:19]} 27. Rc2 {[%clk 0:00:18]}  h4 {[%clk 0:01:18]} 28. Bh2 {[%clk 0:00:18]}  Bh6 {[%clk 0:01:19]} 29. Qe2 {[%clk 0:00:18]}  Nf4 {[%clk 0:01:10]} 30. Bxf4 {[%clk 0:00:18]}  Rxf4 {[%clk 0:01:10]} 31. Be4+ {[%clk 0:00:17]}  Kg7 {[%clk 0:01:10]} 32. Ne3 {[%clk 0:00:17]}  Bg5 {[%clk 0:01:06]} 33. Qh5 {[%clk 0:00:15]}  Bh6 {[%clk 0:00:59]} 34. Nf5+ {[%clk 0:00:06]}  Bxf5 {[%clk 0:00:54]} 35. Bxf5 {[%clk 0:00:07]}  Qd5 {[%clk 0:00:54]} 36. Bg4 {[%clk 0:00:07]}  Qxd3 {[%clk 0:00:54]} 37. Rc1 {[%clk 0:00:05]}  Rxf2 {[%clk 0:00:47]} 38. Re1 {[%clk 0:00:03]}  Qd2 {[%clk 0:00:29]} 39. Qe5+ {[%clk 0:00:02]}  Kg8 {[%clk 0:00:29]} 40. Bf3 {[%clk 0:00:03]}  Bf4 {[%clk 0:00:22]} 41. Qe4 {[%clk 0:00:03]}  Bg3 {[%clk 0:00:19]} 42. Rd1 {[%clk 0:00:02]}  Rxg2+ {[%clk 0:00:18]} 43. Bxg2 {[%clk 0:00:03]}  Qxd1+ {[%clk 0:00:18]} 44. Bf1 {[%clk 0:00:03]}  Qd2 {[%clk 0:00:16]} 45. Qg4+ {[%clk 0:00:02]}  Kf8 {[%clk 0:00:16]} 46. Qc8+ {[%clk 0:00:02]}  Kg7 {[%clk 0:00:17]} 47. Qg4+ {[%clk 0:00:03]}  Kf6 {[%clk 0:00:17]} 48. Qf3+ {[%clk 0:00:03]}  Bf4 {[%clk 0:00:16]} 49. c4 {[%clk 0:00:02]}  e5 {[%clk 0:00:15]} 50. Qc6+ {[%clk 0:00:02]}  Ke7 {[%clk 0:00:13]} 51. Qc7+ {[%clk 0:00:02]}  Kf6 {[%clk 0:00:12]} 52. Qc6+ {[%clk 0:00:03]}  Kf5 {[%clk 0:00:12]} 53. Qc8+ {[%clk 0:00:03]}  Kg5 {[%clk 0:00:09]} 54. Qg4+ {[%clk 0:00:02]}  Kf6 {[%clk 0:00:09]} 55. Qxh4+ {[%clk 0:00:03]}  Ke6 {[%clk 0:00:09]} 56. Qg4+ {[%clk 0:00:04]}  Kd6 {[%clk 0:00:08]} 57. Qg2 {[%clk 0:00:03]}  Qd4+ {[%clk 0:00:08]} 58. Kh1 {[%clk 0:00:04]}  e4 {[%clk 0:00:08]} 59. Qe2 {[%clk 0:00:02]}  f5 {[%clk 0:00:08]} 60. Qh5 {[%clk 0:00:02]}  Qf2 {[%clk 0:00:04]} 61. Qe2 {[%clk 0:00:02]}  Qxe2 {[%clk 0:00:02]} 62. Bxe2 {[%clk 0:00:03]}  Kc5 {[%clk 0:00:03]} 63. Kg2 {[%clk 0:00:03]}  Bh6 {[%clk 0:00:03]} 64. Bh5 {[%clk 0:00:03]}  f4 {[%clk 0:00:03]} 65. Bg6 {[%clk 0:00:04]}  Kd4 {[%clk 0:00:03]} 66. c5 {[%clk 0:00:04]}  f3+ {[%clk 0:00:04]} 67. Kg3 {[%clk 0:00:02]}  Bf8 {[%clk 0:00:03]} 68. c6 {[%clk 0:00:02]}  Bd6+ {[%clk 0:00:03]} 69. Kf2 {[%clk 0:00:03]}  Bc7 {[%clk 0:00:02]} 70. h4 {[%clk 0:00:03]}  Kc5 {[%clk 0:00:01]} 71. Bxe4 {[%clk 0:00:03]}  Kd6 {[%clk 0:00:01]} 72. Kxf3 {[%clk 0:00:03]}  Bd8 {[%clk 0:00:00]} 73. h5 {[%clk 0:00:03]} 1-0